bitfinex/quotes_ETHUSD_20250804
["timestamp","ask_amount","ask_price","bid_price","bid_amount"]
[1754276528606,7.407,3572.9,3572.8,0.002]
[1754276528806,11.14821331,3572.9,3572.8,0.002]
[1754276529012,11.14521331,3572.9,3572.8,0.002]
[1754276529510,11.61181331,3572.9,3572.8,0.002]
[1754276532315,9.15934,3572.9,3572.8,0.002]
[1754276533111,39.70634,3572.9,3572.8,0.002]
[1754276533280,9.15634,3572.9,3572.8,0.002]
[1754276533681,9.29634,3572.9,3572.8,0.002]
[1754276534308,4.89534,3572.9,3572.8,0.002]
[1754276534705,42.64318687,3572.9,3572.8,0.002]
[1754276535036,41.81024687,3572.9,3572.8,0.002]
[1754276535218,39.0114,3572.9,3572.8,0.002]
[1754276535624,34.6124,3572.9,3572.8,0.002]
[1754276536138,39.0134,3572.9,3572.8,0.002]
[1754276536314,37.48064707,3572.9,3572.8,0.002]
[1754276536521,41.88064707,3572.9,3572.8,0.002]
[1754276536824,37.48064707,3572.9,3572.8,0.002]
[1754276537017,11.88064707,3572.9,3572.8,0.002]
[1754276537215,11.74064707,3572.9,3572.8,0.002]
[1754276537612,6.79064707,3572.9,3572.8,0.002]
[1754276537817,3.9224,3572.9,3572.8,0.002]
[1754276538016,8.3204,3572.9,3572.8,0.002]
[1754276538321,2.44847331,3572.2,3572.1,0.4794]
[1754276538530,13.89547331,3572.2,3572.1,0.4794]
[1754276539133,2.44847331,3572.2,3572.1,4.08242231]
[1754276539721,6.84947331,3572.2,3572.1,4.08242231]
[1754276543826,6.84547331,3572.2,3572.1,4.08242231]
[1754276546630,6.84547331,3572.2,3572.1,0.4794]
[1754276547148,13.89547331,3572.2,3571.7,0.4794]
[1754276547380,13.89547331,3572.2,3571.6,0.14]
[1754276547381,2.58847331,3572.1,3571.6,0.14]
[1754276547546,6.83847331,3572.1,3571.9,2.79956136]
[1754276547859,6.83847331,3572.1,3572.0,0.9118]
[1754276548364,6.83847331,3572.1,3571.8,2.93968185]
[1754276548365,6.83847331,3572.1,3571.8,0.14]
[1754276548568,3.4558,3572.0,3571.3,0.4794]
[1754276548867,4.389,3571.9,3571.5,0.14]
[1754276549049,4.8709,3571.9,3571.3,0.4794]
[1754276549254,5.3166,3571.9,3571.4,0.14]
[1754276549561,5.80397339,3571.9,3571.4,0.14]
[1754276549754,5.32207339,3571.9,3571.4,0.14]
[1754276549945,0.4819,3571.8,3571.4,0.14]
[1754276550148,4.389,3571.7,3571.4,2.94001681]
[1754276550349,4.389,3571.6,3571.4,0.5908]
[1754276550529,4.389,3571.6,3571.4,0.14]
[1754276551468,1.41469,3571.5,3571.0,0.002]
[1754276551780,4.387,3571.4,3571.0,2.80233443]
[1754276552281,4.387,3571.4,3571.0,0.002]
[1754276552282,4.8689,3571.4,3571.0,0.002]
[1754276552587,4.387,3571.4,3571.0,0.002]
[1754276552743,4.8689,3571.4,3571.0,0.002]
[1754276553134,0.53146,3571.3,3571.0,0.002]
[1754276553337,4.387,3571.2,3571.0,0.002]
[1754276553765,4.8689,3571.2,3571.0,0.002]
[1754276554539,4.387,3571.1,3571.0,0.002]
[1754276557438,0.9276,3571.4,3571.0,2.80233604]
[1754276557639,0.9276,3571.4,3571.0,0.002]
[1754276557891,4.387,3571.3,3571.0,0.002]
[1754276558253,4.8689,3571.3,3571.0,0.002]
[1754276559090,0.4819,3571.3,3571.0,0.002]
[1754276559238,4.387,3571.2,3571.1,0.9413]
[1754276559438,4.387,3571.2,3571.1,0.4905]
[1754276559742,0.4819,3571.7,3571.1,0.4905]
[1754276560057,3.0,3572.7,3571.5,2.7998882]
[1754276560058,0.4819,3572.1,3571.5,2.7998882]
[1754276560258,4.387,3572.0,3571.7,2.79971819]
[1754276560876,2.44847331,3572.4,3572.3,2.79931696]
[1754276561032,2.44847331,3572.4,3572.2,2.79936974]
[1754276561033,6.83547331,3572.4,3572.2,2.79936974]
[1754276561371,2.44847331,3572.4,3572.3,3.28981696]
[1754276561664,2.44847331,3572.4,3572.3,3.74061696]
[1754276562068,4.388,3572.4,3572.3,3.74061696]
[1754276562436,7.2109,3573.3,3572.7,2.79893075]
[1754276562636,7.2109,3573.3,3572.5,3.28962297]
[1754276562637,5.15366,3573.2,3572.5,3.28962297]
[1754276562847,0.14,3573.1,3572.7,2.79893352]
[1754276563681,4.387,3573.0,3572.7,2.79893352]
[1754276564940,0.14,3573.1,3572.8,2.79891332]
[1754276565141,0.4819,3573.8,3573.1,2.7986138]
[1754276565355,0.14,3573.4,3572.9,1.0813]
[1754276565563,0.14,3573.4,3572.9,0.14]
[1754276565787,12.617,3573.3,3573.2,2.79861188]
[1754276566487,8.23,3573.3,3573.2,2.79861188]
[1754276566773,12.616,3573.3,3573.1,2.79867184]
[1754276566977,12.616,3573.3,3572.9,0.14]
[1754276567177,0.4819,3573.2,3572.9,2.93884665]
[1754276567381,14.38549,3573.3,3571.7,0.4508]
[1754276567382,7.9776,3573.1,3571.7,0.4508]
[1754276567678,0.14,3572.5,3572.4,2.7992386]
[1754276567853,4.386,3572.5,3572.4,2.7992386]
[1754276568270,4.386,3572.5,3572.2,2.79933528]
[1754276568475,4.386,3572.5,3572.1,3.28994716]
[1754276568675,1.18,3572.4,3572.0,0.14]
[1754276568874,2.1076,3572.4,3571.6,0.4905]
[1754276569203,4.386,3572.3,3572.1,2.79940515]
[1754276569500,1.18,3572.2,3572.1,3.25020515]
[1754276569998,1.18,3572.2,3572.0,2.79953286]
[1754276570292,1.18,3572.2,3572.1,2.79947369]
[1754276570463,1.18,3572.2,3572.0,2.79955094]
[1754276570793,1.18,3572.2,3571.5,0.21244284]
[1754276570794,1.18,3572.2,3571.6,2.79985347]
[1754276570994,1.6619,3572.2,3571.7,3.0]
[1754276571192,1.6619,3572.2,3571.9,2.79962155]
[1754276571370,1.18,3572.2,3572.0,0.4905]
[1754276571574,1.18,3572.2,3572.0,3.74082945]
[1754276571788,1.18,3572.2,3572.0,3.29002945]
[1754276571973,4.386,3572.1,3572.0,3.29002945]
[1754276572383,4.386,3572.1,3571.9,2.79961179]
[1754276572570,4.386,3572.1,3571.4,3.0]
[1754276572571,1.18,3572.0,3571.4,0.4905]
[1754276572772,1.18,3572.0,3571.7,3.0]
[1754276572971,1.18,3572.0,3571.7,2.79976443]
[1754276573178,1.18,3572.0,3571.6,5.79981014]
[1754276573499,1.6619,3572.0,3571.6,5.79981014]
[1754276573695,1.6619,3572.0,3571.7,2.79976708]
[1754276574197,1.6619,3571.9,3571.4,2.80001664]
[1754276574496,4.386,3571.8,3571.4,2.80001664]
[1754276574694,4.386,3571.8,3571.5,2.79993093]
[1754276575098,1.6619,3571.7,3571.2,2.8001511]
[1754276575300,1.960339,3571.7,3571.2,2.8001511]
[1754276575538,0.4819,3571.6,3571.0,0.002]
[1754276575694,1.226039,3571.7,3571.0,0.002]
[1754276575695,4.386,3571.5,3571.2,3.0]
[1754276575896,4.386,3571.5,3571.1,3.0]
[1754276576122,0.4819,3572.2,3571.4,2.79995458]
[1754276576339,4.386,3572.1,3571.4,3.29045458]
[1754276576832,4.386,3572.1,3571.0,0.21539608]
[1754276576833,4.386,3572.0,3571.7,2.79971816]
[1754276577034,4.386,3572.0,3571.8,0.4905]
[1754276577207,1.51628667,3572.8,3571.2,3.0]
[1754276577407,3.0,3572.6,3571.4,2.8000224]
[1754276577816,0.9276,3572.5,3571.6,2.79984855]
[1754276578132,0.56962867,3572.7,3571.9,2.79955387]
[1754276578338,4.386,3572.6,3572.0,2.79949256]
[1754276578492,4.386,3572.6,3571.9,3.29010436]
[1754276579015,0.6007,3572.5,3571.9,0.14]
[1754276579239,0.6007,3572.5,3571.1,5.80020803]
[1754276579240,1.47274,3572.4,3571.2,0.4835]
[1754276579423,0.9274,3572.3,3571.1,2.80020683]
[1754276579721,0.14,3572.0,3571.4,2.94002041]
[1754276580801,0.14,3572.0,3571.4,0.14]
[1754276581023,5.566,3571.9,3571.5,2.79988232]
[1754276581235,1.18,3571.9,3571.5,0.4835]
[1754276581536,4.386,3571.8,3571.6,0.9209]
[1754276581746,1.18,3571.9,3571.6,0.4835]
[1754276581949,4.386,3571.7,3571.6,0.4835]
[1754276582234,4.386,3571.7,3571.4,2.93999401]
[1754276582855,4.386,3571.7,3571.4,0.14]
[1754276583537,5.51004,3571.7,3571.4,0.14]
[1754276583727,4.386,3571.7,3571.5,2.799944]
[1754276583923,4.386,3571.7,3571.4,3.86090055]
[1754276584224,1.18,3571.9,3571.4,3.86090055]
[1754276584225,1.18,3571.9,3571.5,2.79993069]
[1754276584417,4.386,3571.8,3571.6,2.79985573]
[1754276584603,4.386,3571.8,3571.6,2.93985573]
[1754276584803,4.386,3571.8,3571.7,0.4835]
[1754276585302,1.18,3571.9,3571.6,2.93986052]
[1754276585508,4.385,3571.8,3571.7,3.72068721]
[1754276585822,1.18,3571.9,3571.8,2.79970883]
[1754276586027,5.565,3571.9,3571.8,3.28320883]
[1754276587232,5.565,3571.9,3571.8,3.42320883]
[1754276587413,5.565,3571.9,3571.8,0.6235]
[1754276587619,5.565,3571.9,3571.8,3.42320883]
[1754276588220,1.18,3571.9,3571.8,3.86060883]
[1754276588404,1.18,3572.0,3571.9,2.79963044]
[1754276588604,0.4607,3572.8,3572.1,2.79947369]
[1754276588605,1.18,3572.2,3572.1,2.79947369]
[1754276588814,1.18,3572.2,3571.9,0.14]
[1754276589036,4.385,3572.2,3572.1,3.86037369]
[1754276589242,7.05,3572.7,3572.2,2.79939533]
[1754276589243,4.385,3572.5,3572.2,2.79939533]
[1754276589425,8.23,3572.7,3572.6,2.7990819]
[1754276589626,12.615,3572.7,3572.6,2.7990819]
[1754276589811,12.615,3572.7,3572.6,3.4225819]
[1754276590406,12.615,3572.7,3572.6,3.8599819]
[1754276592132,4.385,3572.7,3572.6,3.8599819]
[1754276592334,4.385,3572.7,3572.6,6.8599819]
[1754276593249,4.385,3572.7,3572.6,6.4225819]
[1754276593449,4.385,3572.7,3572.6,5.9390819]
[1754276593651,0.001,3573.1,3572.8,2.79888045]
[1754276593858,5.3114,3573.0,3572.7,5.79898798]
[1754276594029,5.3114,3572.9,3572.3,2.79925285]
[1754276594230,5.4514,3572.9,3572.3,3.0]
[1754276594547,0.9274,3572.8,3572.3,2.93930477]
[1754276594744,0.9274,3572.7,3572.3,2.93930477]
[1754276595065,4.384,3572.6,3572.3,0.14]
[1754276595283,4.384,3572.5,3572.4,5.7992386]
[1754276595978,5.3114,3572.5,3572.4,3.0]
[1754276597856,5.3114,3572.5,3572.1,3.14]
[1754276598055,4.8507,3572.5,3572.1,2.93946835]
[1754276598256,0.4607,3572.4,3572.1,2.93946835]
[1754276598756,4.384,3572.5,3572.2,2.79939533]
[1754276599081,0.14,3572.6,3572.2,3.28289533]
[1754276599290,4.383,3572.4,3572.2,3.28289533]
[1754276599584,4.383,3572.4,3572.2,2.79939533]
[1754276599783,0.14,3572.6,3572.3,2.79931694]
[1754276599984,4.383,3572.5,3572.3,2.79931694]
[1754276600191,4.383,3572.5,3572.2,2.79937488]
[1754276601390,4.383,3572.5,3572.3,2.79930639]
[1754276601540,0.9274,3573.0,3572.3,2.79929435]
[1754276601740,0.14,3572.7,3572.3,2.79929435]
[1754276601952,4.383,3572.6,3572.4,2.79923016]
[1754276602289,0.17180568,3572.9,3572.4,2.79923016]
[1754276602290,4.383,3572.5,3572.4,3.3766386]
[1754276602785,4.383,3572.5,3572.4,3.8601386]
[1754276602985,4.383,3572.6,3572.4,1.0609]
[1754276603156,4.383,3572.7,3572.5,3.72006025]
[1754276603356,4.383,3572.7,3572.6,1.0609]
[1754276603556,4.383,3572.7,3572.6,3.8599819]
[1754276603756,0.001,3573.1,3572.9,2.79878875]
[1754276603969,4.382,3573.0,3572.8,2.79889806]
[1754276604992,4.382,3573.0,3572.9,2.79884687]
[1754276605491,4.382,3573.0,3572.8,2.79889609]
[1754276606702,4.382,3573.0,3572.6,0.14]
[1754276606862,0.9274,3572.9,3571.9,0.4835]
[1754276607063,0.14,3572.7,3572.3,2.79925808]
[1754276607264,4.382,3572.6,3572.3,2.79925808]
[1754276607580,4.382,3572.6,3572.2,0.14]
[1754276607581,4.382,3572.5,3572.4,0.9209]
[1754276607888,4.382,3572.5,3572.4,0.4835]
[1754276608062,5.3094,3572.5,3572.2,0.14]
[1754276608260,0.4607,3572.4,3572.2,0.14]
[1754276608492,4.382,3572.5,3572.0,2.79953583]
[1754276608690,0.4607,3572.3,3572.1,0.14]
[1754276608896,4.382,3572.2,3572.1,0.14]
[1754276610298,4.8725,3572.2,3571.9,0.002]
[1754276610598,0.9249,3572.1,3571.9,0.142]
[1754276610962,0.4905,3572.0,3571.9,0.142]
[1754276611163,0.9249,3572.0,3571.9,0.142]
[1754276611369,0.9249,3572.0,3571.9,0.002]
[1754276611569,0.14,3572.1,3571.9,0.002]
[1754276611765,4.381,3572.0,3571.9,0.4324]
[1754276611970,4.381,3572.0,3571.9,3.23202034]
[1754276612195,4.381,3572.0,3571.9,0.75560203]
[1754276612498,4.381,3572.0,3571.9,3.86123044]
[1754276613006,0.001,3573.1,3572.5,2.79909605]
[1754276613307,3.0,3572.9,3572.5,2.93909605]
[1754276613598,12.611,3572.8,3572.6,3.28827281]
[1754276613773,12.611,3572.8,3572.7,2.79900355]
[1754276613774,8.23,3572.8,3572.7,2.79900355]
[1754276613979,12.611,3572.8,3572.7,2.93900355]
[1754276614986,12.611,3572.8,3572.7,3.42820355]
[1754276615182,8.23,3572.8,3572.7,3.42820355]
[1754276615369,8.23,3572.8,3572.7,3.85860355]
[1754276615573,12.611,3572.8,3572.7,3.85860355]
[1754276617208,12.611,3572.8,3572.7,3.42820355]
[1754276617581,12.61,3572.8,3572.7,3.42820355]
[1754276618003,8.23,3572.8,3572.7,3.42820355]
[1754276618211,12.61,3572.8,3572.7,3.42820355]
[1754276620007,8.23,3572.8,3572.7,3.85860355]
[1754276620310,1.18,3572.8,3572.7,4.52717796]
[1754276622111,1.18,3572.8,3572.7,4.73553463]
[1754276624081,1.18,3573.0,3572.9,2.79884687]
[1754276624478,1.181,3573.1,3573.0,3.34876854]
[1754276624679,0.001,3573.1,3573.0,9.36806759]
[1754276629516,0.001,3573.1,3573.0,7.89846759]
[1754276629998,0.4915,3573.1,3572.9,0.14]
[1754276630197,0.9249,3573.0,3572.9,2.93883011]
[1754276630887,0.9249,3573.0,3572.9,0.14]
[1754276631404,0.9249,3573.0,3572.7,2.79899973]
[1754276631720,0.9249,3572.9,3572.7,2.93899973]
[1754276632229,0.9249,3572.9,3572.8,2.79892521]
[1754276632430,0.9249,3572.8,3572.1,0.002]
[1754276632615,0.9249,3572.7,3572.3,0.14]
[1754276632790,0.9249,3572.6,3572.3,0.14]
[1754276632994,0.9249,3572.5,3572.3,2.93929373]
[1754276633321,0.9249,3572.4,3572.3,0.14]
[1754276633496,0.9249,3572.4,3572.1,0.002]
[1754276633827,0.9249,3572.3,3572.1,0.002]
[1754276634222,0.53019,3572.4,3572.1,0.002]
[1754276634418,0.9249,3572.2,3572.1,0.002]
[1754276634733,0.4905,3572.2,3572.1,2.80147369]
[1754276634939,0.4905,3572.2,3572.1,0.002]
[1754276635311,0.9249,3572.4,3572.1,2.80147369]
[1754276635519,0.4905,3572.3,3572.1,2.80147369]
[1754276635757,0.4905,3572.3,3572.1,0.002]
[1754276635927,0.4905,3572.3,3572.1,2.80140654]
[1754276636607,4.8104,3572.4,3572.2,2.79939533]
[1754276636837,5.3009,3572.4,3572.2,2.79939533]
[1754276637022,0.9249,3572.3,3572.1,0.002]
[1754276637533,1.18,3572.2,3572.1,0.002]
[1754276637851,2.1049,3572.2,3572.1,0.002]
[1754276638419,1.18,3572.2,3572.1,2.80147369]
[1754276638633,1.18,3572.2,3572.1,2.94147369]
[1754276639945,1.18,3572.2,3572.1,3.90467369]
[1754276640114,1.18,3572.2,3572.1,2.94147369]
[1754276640311,1.6607,3572.2,3572.1,2.94147369]
[1754276641936,1.18,3572.2,3572.1,2.94147369]
[1754276642251,1.18,3572.2,3572.1,3.43107369]
[1754276642449,1.18,3572.2,3572.1,2.94147369]
[1754276643316,1.6607,3572.2,3572.1,2.94147369]
[1754276643703,1.18,3572.2,3572.1,2.94147369]
[1754276643910,1.18,3572.3,3572.1,0.142]
[1754276644138,2.1301,3572.3,3572.1,0.002]
[1754276644343,0.9501,3572.2,3572.1,2.80147369]
[1754276644551,0.4807,3573.3,3572.6,2.79907137]
[1754276644708,3.0,3572.9,3572.6,2.93907137]
[1754276644908,1.18,3572.8,3572.6,2.93907137]
[1754276645109,1.18,3572.8,3572.6,0.14]
[1754276646355,4.375,3572.7,3572.6,0.14]
[1754276649347,4.8557,3572.7,3572.6,0.14]
[1754276649554,0.4807,3572.7,3572.6,0.14]
[1754276649852,0.4807,3572.7,3572.1,2.8014608]
[1754276649853,5.3251,3572.7,3572.1,2.8014608]
[1754276650036,0.4807,3572.6,3572.3,0.14]
[1754276650232,0.9501,3572.5,3572.3,0.14]
[1754276650438,4.375,3572.4,3572.3,0.14]
[1754276650627,5.3251,3572.4,3572.3,0.14]
[1754276650948,5.555,3572.4,3572.3,0.14]
[1754276651148,5.555,3572.4,3572.3,2.93931696]
[1754276651528,5.555,3572.4,3572.3,0.14]
[1754276651841,1.18,3572.4,3572.3,0.14]
[1754276652050,5.555,3572.4,3572.3,0.14]
[1754276652455,1.18,3572.4,3572.3,0.14]
[1754276652750,4.374,3572.4,3572.3,3.42891696]
[1754276652918,5.554,3572.4,3572.3,3.42891696]
[1754276653115,5.554,3572.4,3572.3,3.90251696]
[1754276653439,5.554,3572.4,3572.3,4.57291548]
[1754276654843,1.18,3572.4,3572.3,4.57291548]
[1754276655348,5.554,3572.4,3572.3,4.57291548]
[1754276655549,5.554,3572.4,3572.3,3.90251696]
[1754276657626,5.554,3572.4,3572.3,2.93931696]
[1754276658314,5.553,3572.4,3572.3,2.93931696]
[1754276658516,1.18,3572.4,3572.3,2.93931696]
[1754276658844,6.0337,3572.4,3572.3,2.93931696]
[1754276660830,6.0337,3572.4,3572.3,0.14]
[1754276661382,6.0337,3572.4,3572.3,2.93931696]
[1754276661870,6.0337,3572.4,3572.3,0.14]
[1754276662176,7.24647,3572.4,3572.1,0.002]
[1754276662327,1.178,3572.1,3571.9,0.002]
[1754276662527,5.55,3572.0,3571.9,0.002]
[1754276662729,6.91901,3572.0,3571.9,0.002]
[1754276662979,5.55,3572.0,3571.9,0.002]
[1754276663128,5.55,3572.0,3571.9,2.80163044]
[1754276663332,1.178,3572.0,3571.9,3.76483044]
[1754276663564,5.55,3572.0,3571.9,3.90483044]
[1754276663931,1.178,3572.0,3571.9,3.90483044]
[1754276668454,1.6587,3572.0,3571.9,2.94163044]
[1754276668655,1.6587,3572.0,3571.9,0.002]
[1754276668656,3.388,3572.0,3571.9,0.002]
[1754276671450,2.9186,3572.0,3571.9,0.002]
[1754276672966,2.4379,3572.0,3571.9,2.80163044]
[1754276673154,1.178,3572.0,3571.9,2.80163044]
[1754276673348,5.548,3572.0,3571.9,2.94163044]
[1754276674550,4.37,3572.0,3571.9,0.14]
[1754276674972,4.37,3572.0,3571.9,2.93963044]
[1754276675171,4.37,3572.0,3571.9,0.14]
[1754276675372,4.8278,3572.0,3571.9,0.14]
[1754276676550,6.06135,3572.0,3571.9,0.14]
[1754276676751,6.51905,3572.0,3571.7,0.14]
[1754276677092,0.9155,3571.9,3571.7,0.14]
[1754276677256,5.021905,3571.8,3571.7,0.14]
[1754276677462,5.937405,3571.8,3571.7,0.14]
[1754276678180,5.021905,3571.8,3571.7,0.14]
[1754276678386,5.937405,3571.8,3571.5,0.002]
[1754276678560,5.021905,3571.8,3571.5,0.142]
[1754276678761,0.4578,3571.7,3571.5,0.142]
[1754276678962,4.369,3571.6,3571.5,0.002]
[1754276679487,4.8268,3571.6,3571.5,0.002]
[1754276680198,4.369,3571.6,3571.5,0.002]
[1754276680501,4.8268,3571.6,3571.5,0.002]
[1754276681305,4.369,3571.6,3571.5,0.002]
[1754276681600,4.369,3571.6,3571.5,2.801944]
[1754276681806,7.05,3571.9,3571.8,2.79970883]
[1754276681967,7.05,3571.9,3571.8,2.93970883]
[1754276681968,11.419,3571.9,3571.8,2.93970883]
[1754276682785,11.419,3571.9,3571.8,3.86680883]
[1754276684106,11.418,3571.9,3571.8,3.86680883]
[1754276685186,7.05,3571.9,3571.8,6.86680883]
[1754276685404,11.418,3571.9,3571.8,7.58896857]
[1754276687002,7.05,3571.9,3571.8,4.58896857]
[1754276687208,11.417,3571.9,3571.8,4.58896857]
[1754276688309,11.417,3571.9,3571.8,3.41330883]
[1754276688542,11.417,3571.9,3571.8,2.93970883]
[1754276688904,11.8748,3571.9,3571.7,2.79976549]
[1754276689110,0.6618,3571.8,3571.5,0.002]
[1754276689323,0.14,3571.6,3571.5,0.002]
[1754276689519,4.9648,3571.7,3571.5,0.002]
[1754276689841,0.4578,3571.6,3571.5,0.002]
[1754276690816,0.6618,3571.6,3571.5,0.002]
[1754276691021,2.002428,3571.6,3571.5,0.002]
[1754276692150,1.798428,3571.6,3571.5,0.002]
[1754276692339,2.002428,3571.6,3571.5,0.002]
[1754276692838,4.366,3571.6,3571.5,0.002]
[1754276693039,4.366,3571.6,3571.5,3.275544]
[1754276693231,4.366,3571.6,3571.5,3.729044]
[1754276693551,4.366,3571.6,3571.5,3.275544]
[1754276693723,4.366,3571.6,3571.5,2.801944]
[1754276693920,7.05,3571.9,3571.5,2.801944]
[1754276694243,4.366,3571.8,3571.5,0.002]
[1754276694408,4.366,3571.7,3571.5,0.002]
[1754276694611,5.2815,3571.7,3571.5,0.002]
[1754276694812,4.8237,3571.7,3571.5,0.002]
[1754276695012,7.9655,3571.6,3571.5,0.002]
[1754276695238,11.1055,3571.6,3571.5,0.002]
[1754276695422,12.65265,3571.6,3571.5,0.002]
[1754276697454,9.19495,3571.6,3571.5,0.002]
[1754276698645,9.65265,3571.6,3571.5,0.002]
[1754276698847,7.19,3571.6,3571.5,0.002]
[1754276699021,11.416,3571.6,3571.5,0.002]
[1754276699423,12.3485,3571.6,3571.5,0.002]
[1754276699729,12.4885,3571.6,3571.5,0.002]
[1754276699955,12.0232,3571.6,3571.5,0.002]
[1754276700143,13.22552,3571.6,3571.5,0.002]
[1754276702951,13.69082,3571.6,3571.5,0.002]
[1754276703353,13.22552,3571.6,3571.5,0.002]
[1754276704378,16.22552,3571.6,3571.5,0.002]
[1754276704577,46.69082,3571.6,3571.5,0.002]
[1754276705161,50.0406856,3571.6,3571.5,0.002]
[1754276708189,47.23882,3571.6,3571.5,0.002]
[1754276709288,50.0386856,3571.6,3571.5,0.002]
[1754276710777,45.6746856,3571.6,3571.5,0.002]
[1754276710994,36.35017921,3571.2,3571.1,0.002]
[1754276711184,64.01446325,3571.2,3571.1,0.002]
[1754276711376,65.08696325,3571.2,3571.1,0.002]
[1754276711578,60.72296325,3571.2,3571.1,0.002]
[1754276711972,40.6532,3571.2,3571.1,0.002]
[1754276712179,43.52144707,3571.2,3571.1,0.002]
[1754276712585,10.05424707,3571.2,3571.1,0.9487]
[1754276712787,11.549,3571.2,3571.1,0.9487]
[1754276712977,14.549,3571.2,3571.1,0.9487]
[1754276713767,10.186,3571.2,3571.1,0.9487]
[1754276713983,14.549,3571.2,3571.1,0.9487]
[1754276714967,2.80072818,3570.5,3569.3,0.841813]
[1754276715173,2.80072818,3570.5,3569.0,0.9467]
[1754276715174,40.55,3570.1,3569.0,0.9467]
[1754276715368,41.38844707,3570.1,3569.0,0.9467]
[1754276715609,41.85374707,3570.1,3569.0,0.9467]
[1754276715802,44.65478905,3570.1,3569.0,0.9467]
[1754276716181,44.65478905,3570.1,3568.6,0.9467]
[1754276716789,45.49707705,3570.1,3568.6,0.9467]
[1754276717187,44.51478905,3570.1,3568.6,0.9467]
[1754276717605,41.71374707,3570.1,3569.0,0.9467]
[1754276717776,42.55611607,3570.1,3569.0,0.9467]
[1754276718306,41.71374707,3570.1,3569.0,0.9467]
[1754276718509,37.35074707,3570.1,3569.0,0.9467]
[1754276718710,41.71374707,3570.1,3568.5,2.80228174]
[1754276718911,41.71374707,3570.1,3568.8,0.9467]
[1754276719495,41.71374707,3570.1,3568.1,2.80256163]
[1754276719693,41.24844707,3570.1,3569.2,0.9467]
[1754276720199,0.55,3569.8,3569.2,0.9467]
[1754276720404,3.0,3569.6,3569.2,0.9467]
[1754276720608,3.0,3569.4,3569.3,0.9467]
[1754276720929,3.55,3569.9,3569.3,0.9467]
[1754276721134,0.842284,3570.2,3567.8,0.002]
[1754276721414,3.0,3570.0,3569.4,0.9467]
[1754276721639,3.0,3569.8,3569.4,0.9467]
[1754276721808,3.0,3569.6,3569.0,2.80184903]
[1754276722007,30.0,3570.1,3569.5,0.9467]
[1754276722187,0.4672,3570.2,3569.5,0.9467]
[1754276722188,3.0,3569.9,3569.5,0.9467]
[1754276722390,3.0,3569.7,3569.5,0.9467]
[1754276722611,4.363,3569.6,3568.9,2.80190989]
[1754276722813,4.363,3569.6,3569.0,0.9467]
[1754276723118,4.363,3569.6,3569.1,0.9467]
[1754276723288,4.363,3569.6,3569.0,2.80189712]
[1754276723492,4.363,3569.6,3569.2,0.9467]
[1754276723729,4.363,3569.6,3569.3,0.9467]
[1754276724023,0.7363,3569.7,3569.4,0.9467]
[1754276724197,30.0,3570.3,3569.4,0.9467]
[1754276724398,4.363,3570.2,3569.6,2.80137765]
[1754276724612,3.0,3570.0,3569.6,2.80137765]
[1754276724819,4.363,3569.9,3569.7,0.9467]
[1754276725000,4.363,3569.9,3569.8,0.4672]
[1754276725327,4.363,3569.9,3569.8,0.9467]
[1754276727314,0.14,3569.9,3569.6,2.80141628]
[1754276727490,4.503,3569.9,3569.8,0.9467]
[1754276728188,0.14,3569.9,3569.8,0.9467]
[1754276728521,4.503,3569.9,3569.8,0.9467]
[1754276728734,3.55,3569.8,3568.4,0.9467]
[1754276729031,0.14,3568.6,3568.5,0.9457]
[1754276729235,4.363,3568.7,3568.6,2.80221935]
[1754276729590,4.363,3568.7,3568.6,3.74791935]
[1754276730887,0.14,3568.9,3568.7,2.80210952]
[1754276731235,4.363,3568.8,3568.7,3.74780952]
[1754276731817,0.39232,3569.7,3568.7,3.74780952]
[1754276732143,0.14,3569.4,3568.9,2.8019838]
[1754276732428,0.14,3569.4,3569.0,0.9457]
[1754276732599,4.363,3569.3,3569.0,0.9457]
[1754276732794,4.363,3569.3,3568.9,2.8019838]
[1754276733133,4.363,3569.3,3569.1,0.9457]
[1754276733626,4.363,3569.3,3569.2,0.9457]
[1754276734527,4.363,3569.3,3569.2,1.33445239]
[1754276734837,4.363,3569.4,3569.2,0.9457]
[1754276735129,4.363,3569.4,3569.3,0.9457]
[1754276735330,4.363,3569.4,3569.3,3.74736979]
[1754276735548,4.363,3569.4,3569.3,0.9457]
[1754276737330,0.14,3569.6,3569.3,0.9457]
[1754276737546,4.363,3569.6,3569.5,2.80145719]
[1754276737912,4.363,3569.6,3569.5,3.74715719]
[1754276738244,4.363,3569.7,3569.6,2.80143433]
[1754276738468,4.363,3569.8,3569.6,2.80143433]
[1754276738615,4.363,3569.9,3569.7,2.80135585]
[1754276739134,4.363,3569.9,3569.8,0.9457]
[1754276739297,0.14,3570.0,3569.8,0.9457]
[1754276739498,4.503,3570.0,3569.9,0.9457]
[1754276739731,0.14,3570.0,3569.9,0.9457]
[1754276739903,4.503,3570.0,3569.9,0.9457]
[1754276740098,11.409,3570.0,3569.9,0.9457]
[1754276741155,11.409,3570.0,3569.9,0.4887]